[Event "Titled Tuesday Blitz June 6 Early 2023"]
[White "Yanayt, Eugene"]
[Black "Arencibia Monduy, Antonio"]
[WhiteFideId "2020165"]
[BlackFideId "3507939"]
[WhiteElo "2083"]
[BlackElo "2487"]
[Result "0-1"]
[Round "11"]
[TimeControl "180+2"]
[Date "2023.06.06"]
[WhiteClock "0:00:15"]
[BlackClock "0:00:11"]
[Board "80"]

1. d4 {[%clk 0:03:00]}  c5 {[%clk 0:02:59]} 2. d5 {[%clk 0:03:00]}  d6 {[%clk 0:02:58]} 3. c4 {[%clk 0:03:00]}  e6 {[%clk 0:02:58]} 4. Nc3 {[%clk 0:03:00]}  exd5 {[%clk 0:02:55]} 5. cxd5 {[%clk 0:03:01]}  Nf6 {[%clk 0:02:55]} 6. Nf3 {[%clk 0:03:00]}  g6 {[%clk 0:02:55]} 7. Nd2 {[%clk 0:03:01]}  Bg7 {[%clk 0:02:56]} 8. e4 {[%clk 0:03:01]}  O-O {[%clk 0:02:56]} 9. Be2 {[%clk 0:03:02]}  a6 {[%clk 0:02:55]} 10. a4 {[%clk 0:03:01]}  Ne8 {[%clk 0:02:52]} 11. O-O {[%clk 0:02:55]}  Nd7 {[%clk 0:02:52]} 12. Ra3 {[%clk 0:02:50]}  Rb8 {[%clk 0:02:51]} 13. Kh1 {[%clk 0:02:48]}  Nc7 {[%clk 0:02:43]} 14. Nc4 {[%clk 0:02:44]}  Qe7 {[%clk 0:02:42]} 15. Bf4 {[%clk 0:02:38]}  Ne5 {[%clk 0:02:42]} 16. Nb6 {[%clk 0:02:37]}  Nd7 {[%clk 0:02:24]} 17. Nc4 {[%clk 0:02:37]}  Ne5 {[%clk 0:02:24]} 18. Nb6 {[%clk 0:02:24]}  Na8 {[%clk 0:02:23]} 19. Nxa8 {[%clk 0:02:15]}  Rxa8 {[%clk 0:02:23]} 20. a5 {[%clk 0:02:15]}  Rb8 {[%clk 0:02:17]} 21. Na4 {[%clk 0:02:15]}  f5 {[%clk 0:02:04]} 22. exf5 {[%clk 0:02:12]}  Bxf5 {[%clk 0:02:04]} 23. Nb6 {[%clk 0:02:04]}  Qc7 {[%clk 0:01:44]} 24. Bd2 {[%clk 0:01:49]}  Rbe8 {[%clk 0:01:33]} 25. Rg3 {[%clk 0:01:45]}  Nd7 {[%clk 0:01:28]} 26. Nc4 {[%clk 0:01:44]}  b5 {[%clk 0:01:20]} 27. axb6 {[%clk 0:01:43]}  Qb8 {[%clk 0:01:17]} 28. Ba5 {[%clk 0:01:39]}  Ne5 {[%clk 0:01:08]} 29. Ne3 {[%clk 0:01:33]}  Bc8 {[%clk 0:00:58]} 30. Qa4 {[%clk 0:01:30]}  Bb7 {[%clk 0:00:57]} 31. b3 {[%clk 0:01:19]}  Bh6 {[%clk 0:00:56]} 32. Rd1 {[%clk 0:01:10]}  Rxf2 {[%clk 0:00:52]} 33. Bg4 {[%clk 0:01:01]}  Ref8 {[%clk 0:00:31]} 34. Be6+ {[%clk 0:01:01]}  Kh8 {[%clk 0:00:32]} 35. Kg1 {[%clk 0:01:01]}  Qd8 {[%clk 0:00:23]} 36. Bd2 {[%clk 0:00:37]}  Qf6 {[%clk 0:00:19]} 37. Qa1 {[%clk 0:00:21]}  Rxd2 {[%clk 0:00:12]} 38. Rxd2 {[%clk 0:00:19]}  Nf3+ {[%clk 0:00:12]} 39. Rxf3 {[%clk 0:00:17]}  Qxa1+ {[%clk 0:00:13]} 40. Rd1 {[%clk 0:00:18]}  Bxe3+ {[%clk 0:00:12]} 41. Rxe3 {[%clk 0:00:14]}  Qxd1+ {[%clk 0:00:11]} 42. Re1 {[%clk 0:00:15]}  Qxe1# {[%clk 0:00:11]} 0-1


[Site "https://www.chess.com"]

[Event "Titled Tuesday Blitz June 6 Early 2023"]
[White "Turzo, Attila"]
[Black "Ibadov, Dashgyn"]
[WhiteFideId "704954"]
[BlackFideId "24107514"]
[WhiteElo "2483"]
[BlackElo "2208"]
[Result "1-0"]
[Round "11"]
[TimeControl "180+2"]
[Date "2023.06.06"]
[WhiteClock "0:00:06"]
[BlackClock "0:00:03"]
[Board "81"]

1. d4 {[%clk 0:03:00]}  Nf6 {[%clk 0:02:59]} 2. c4 {[%clk 0:03:01]}  c5 {[%clk 0:02:59]} 3. d5 {[%clk 0:03:00]}  d6 {[%clk 0:03:00]} 4. Nc3 {[%clk 0:02:58]}  g6 {[%clk 0:03:00]} 5. g3 {[%clk 0:02:56]}  Bg7 {[%clk 0:03:01]} 6. Bg2 {[%clk 0:02:57]}  O-O {[%clk 0:03:01]} 7. Nf3 {[%clk 0:02:58]}  e6 {[%clk 0:03:02]} 8. O-O {[%clk 0:02:55]}  exd5 {[%clk 0:03:03]} 9. cxd5 {[%clk 0:02:56]}  Re8 {[%clk 0:03:04]} 10. a4 {[%clk 0:02:55]}  Nbd7 {[%clk 0:03:02]} 11. Bf4 {[%clk 0:02:53]}  Qe7 {[%clk 0:02:33]} 12. Re1 {[%clk 0:02:47]}  Nh5 {[%clk 0:02:32]} 13. Bg5 {[%clk 0:02:47]}  Qf8 {[%clk 0:02:30]} 14. e4 {[%clk 0:02:46]}  a6 {[%clk 0:02:18]} 15. Qd2 {[%clk 0:02:43]}  Ne5 {[%clk 0:02:15]} 16. Nxe5 {[%clk 0:02:42]}  Bxe5 {[%clk 0:02:16]} 17. Be3 {[%clk 0:02:38]}  f5 {[%clk 0:02:13]} 18. f4 {[%clk 0:02:32]}  Bxc3 {[%clk 0:02:04]} 19. bxc3 {[%clk 0:02:22]}  fxe4 {[%clk 0:02:05]} 20. c4 {[%clk 0:02:21]}  Bg4 {[%clk 0:01:56]} 21. h3 {[%clk 0:02:17]}  Bf3 {[%clk 0:01:52]} 22. Bxf3 {[%clk 0:02:17]}  exf3 {[%clk 0:01:53]} 23. Qf2 {[%clk 0:02:18]}  Re4 {[%clk 0:01:44]} 24. Qxf3 {[%clk 0:02:11]}  Rae8 {[%clk 0:01:39]} 25. Bf2 {[%clk 0:02:09]}  Rxe1+ {[%clk 0:01:31]} 26. Rxe1 {[%clk 0:02:09]}  Rxe1+ {[%clk 0:01:32]} 27. Bxe1 {[%clk 0:02:10]}  Qe8 {[%clk 0:01:33]} 28. Bc3 {[%clk 0:01:54]}  Ng7 {[%clk 0:01:13]} 29. Bb2 {[%clk 0:01:37]}  Nf5 {[%clk 0:01:09]} 30. Kf2 {[%clk 0:01:28]}  Qxa4 {[%clk 0:01:04]} 31. Qe2 {[%clk 0:01:28]}  Qd7 {[%clk 0:01:01]} 32. g4 {[%clk 0:01:19]}  Nd4 {[%clk 0:00:55]} 33. Bxd4 {[%clk 0:01:18]}  cxd4 {[%clk 0:00:56]} 34. Kf3 {[%clk 0:01:05]}  b5 {[%clk 0:00:53]} 35. cxb5 {[%clk 0:01:00]}  axb5 {[%clk 0:00:54]} 36. Qe4 {[%clk 0:00:53]}  b4 {[%clk 0:00:44]} 37. Qxd4 {[%clk 0:00:52]}  Qb7 {[%clk 0:00:34]} 38. Ke4 {[%clk 0:00:46]}  b3 {[%clk 0:00:33]} 39. Qb2 {[%clk 0:00:46]}  Qb4+ {[%clk 0:00:27]} 40. Ke3 {[%clk 0:00:45]}  Qc4 {[%clk 0:00:21]} 41. Qf6 {[%clk 0:00:40]}  Qxd5 {[%clk 0:00:18]} 42. Qd8+ {[%clk 0:00:35]}  Kg7 {[%clk 0:00:18]} 43. Qe7+ {[%clk 0:00:32]}  Qf7 {[%clk 0:00:19]} 44. Qxd6 {[%clk 0:00:32]}  b2 {[%clk 0:00:15]} 45. Qb4 {[%clk 0:00:22]}  Qf6 {[%clk 0:00:09]} 46. Kf2 {[%clk 0:00:16]}  g5 {[%clk 0:00:06]} 47. f5 {[%clk 0:00:13]}  Kh6 {[%clk 0:00:04]} 48. Ke2 {[%clk 0:00:09]}  Qe5+ {[%clk 0:00:03]} 49. Kd3 {[%clk 0:00:06]} 1-0


[Site "https://www.chess.com"]

[Event "Titled Tuesday Blitz June 6 Early 2023"]
[White "Makhmudov, Shukhrat"]
[Black "Do Nascimento,Christian Almeida"]
[WhiteFideId "14200775"]
[BlackFideId "2143801"]
[WhiteElo "2135"]
[BlackElo "2078"]
[Result "0-1"]
[Round "11"]
[TimeControl "180+2"]
[Date "2023.06.06"]
[WhiteClock "0:00:18"]
[BlackClock "0:00:06"]
[Board "83"]

1. e4 {[%clk 0:02:57]}  c5 {[%clk 0:02:59]} 2. Nf3 {[%clk 0:02:57]}  g6 {[%clk 0:02:59]} 3. d4 {[%clk 0:02:57]}  cxd4 {[%clk 0:03:00]} 4. Nxd4 {[%clk 0:02:58]}  Bg7 {[%clk 0:03:00]} 5. Nc3 {[%clk 0:02:57]}  Nc6 {[%clk 0:03:00]} 6. Be3 {[%clk 0:02:58]}  Nf6 {[%clk 0:03:01]} 7. Nxc6 {[%clk 0:02:57]}  bxc6 {[%clk 0:02:55]} 8. e5 {[%clk 0:02:57]}  Ng8 {[%clk 0:02:52]} 9. Bd4 {[%clk 0:02:56]}  c5 {[%clk 0:02:29]} 10. Bxc5 {[%clk 0:02:52]}  Bxe5 {[%clk 0:02:29]} 11. Bc4 {[%clk 0:02:46]}  Nf6 {[%clk 0:02:05]} 12. O-O {[%clk 0:02:43]}  Bxh2+ {[%clk 0:01:56]} 13. Kxh2 {[%clk 0:02:42]}  Qc7+ {[%clk 0:01:57]} 14. Bd6 {[%clk 0:02:42]}  Qxd6+ {[%clk 0:01:57]} 15. Qxd6 {[%clk 0:02:41]}  exd6 {[%clk 0:01:58]} 16. Rfe1+ {[%clk 0:02:41]}  Kf8 {[%clk 0:01:58]} 17. Nb5 {[%clk 0:02:42]}  d5 {[%clk 0:01:45]} 18. Nc7 {[%clk 0:02:41]}  Rb8 {[%clk 0:01:45]} 19. Nxd5 {[%clk 0:02:35]}  Nxd5 {[%clk 0:01:40]} 20. Bxd5 {[%clk 0:02:35]}  Rxb2 {[%clk 0:01:40]} 21. Bb3 {[%clk 0:02:13]}  Bb7 {[%clk 0:01:39]} 22. Rad1 {[%clk 0:02:11]}  Bc6 {[%clk 0:01:38]} 23. Rd3 {[%clk 0:02:03]}  h5 {[%clk 0:01:23]} 24. Rd4 {[%clk 0:02:02]}  h4 {[%clk 0:01:08]} 25. Rf4 {[%clk 0:01:56]}  f5 {[%clk 0:01:08]} 26. Rb4 {[%clk 0:01:52]}  Kg7 {[%clk 0:01:01]} 27. Re7+ {[%clk 0:01:51]}  Kf6 {[%clk 0:00:52]} 28. Rf7+ {[%clk 0:01:45]}  Kg5 {[%clk 0:00:52]} 29. Rd4 {[%clk 0:01:23]}  a5 {[%clk 0:00:49]} 30. a4 {[%clk 0:01:22]}  h3 {[%clk 0:00:44]} 31. g3 {[%clk 0:01:19]}  Rb1 {[%clk 0:00:43]} 32. Bd5 {[%clk 0:01:02]}  Rb4 {[%clk 0:00:25]} 33. c4 {[%clk 0:00:47]}  Bxd5 {[%clk 0:00:19]} 34. Rxd5 {[%clk 0:00:44]}  Rxa4 {[%clk 0:00:18]} 35. Rd6 {[%clk 0:00:42]}  Ra2 {[%clk 0:00:16]} 36. Rg7 {[%clk 0:00:36]}  Rxf2+ {[%clk 0:00:15]} 37. Kg1 {[%clk 0:00:36]}  Rg2+ {[%clk 0:00:15]} 38. Kf1 {[%clk 0:00:36]}  Rh6 {[%clk 0:00:15]} 39. Rgxd7 {[%clk 0:00:30]}  Ra2 {[%clk 0:00:12]} 40. Kg1 {[%clk 0:00:25]}  Rg2+ {[%clk 0:00:10]} 41. Kh1 {[%clk 0:00:24]}  Rxg3 {[%clk 0:00:11]} 42. Rd3 {[%clk 0:00:19]}  Rxd3 {[%clk 0:00:10]} 43. Rxd3 {[%clk 0:00:19]}  Kf4 {[%clk 0:00:11]} 44. Ra3 {[%clk 0:00:19]}  g5 {[%clk 0:00:10]} 45. c5 {[%clk 0:00:19]}  g4 {[%clk 0:00:08]} 46. Rc3 {[%clk 0:00:18]}  Rc6 {[%clk 0:00:06]} 47. Kh2 {[%clk 0:00:17]}  Ke4 {[%clk 0:00:05]} 48. Kg3 {[%clk 0:00:17]}  Kd4 {[%clk 0:00:06]} 49. Ra3 {[%clk 0:00:17]}  Rxc5 {[%clk 0:00:06]} 50. Ra4+ {[%clk 0:00:17]}  Kc3 {[%clk 0:00:06]} 51. Ra3+ {[%clk 0:00:17]}  Kb4 {[%clk 0:00:06]} 52. Ra1 {[%clk 0:00:17]}  a4 {[%clk 0:00:06]} 53. Rc1 {[%clk 0:00:18]}  Rxc1 {[%clk 0:00:06]} 0-1


[Site "https://www.chess.com"]

[Event "Titled Tuesday Blitz June 6 Early 2023"]
[White "LeoLV10"]
[Black "Baches Garcia, Guillermo"]
[BlackFideId "2209764"]
[WhiteElo "2425"]
[BlackElo "2502"]
[Result "1-0"]
[Round "11"]
[TimeControl "180+2"]
[Date "2023.06.06"]
[WhiteClock "0:00:17"]
[BlackClock "0:00:08"]
[Board "84"]

1. e4 {[%clk 0:02:58]}  d5 {[%clk 0:02:59]} 2. exd5 {[%clk 0:02:58]}  Qxd5 {[%clk 0:03:00]} 3. Nc3 {[%clk 0:02:59]}  Qa5 {[%clk 0:03:00]} 4. Bc4 {[%clk 0:02:59]}  Nf6 {[%clk 0:02:58]} 5. d3 {[%clk 0:03:00]}  e6 {[%clk 0:02:55]} 6. Bd2 {[%clk 0:03:00]}  a6 {[%clk 0:02:42]} 7. Nd5 {[%clk 0:02:26]}  Qc5 {[%clk 0:02:33]} 8. Bb4 {[%clk 0:02:22]}  Qc6 {[%clk 0:02:27]} 9. Nxf6+ {[%clk 0:02:20]}  gxf6 {[%clk 0:02:25]} 10. Bxf8 {[%clk 0:02:20]}  Qxg2 {[%clk 0:02:17]} 11. Ba3 {[%clk 0:01:45]}  Qxh1 {[%clk 0:02:07]} 12. Qg4 {[%clk 0:01:44]}  Nd7 {[%clk 0:01:39]} 13. O-O-O {[%clk 0:01:37]}  Qxh2 {[%clk 0:01:09]} 14. Qg7 {[%clk 0:01:33]}  Rf8 {[%clk 0:01:08]} 15. Bxe6 {[%clk 0:01:23]}  c5 {[%clk 0:00:31]} 16. Bxd7+ {[%clk 0:01:04]}  Bxd7 {[%clk 0:00:31]} 17. Bxc5 {[%clk 0:00:47]}  O-O-O {[%clk 0:00:30]} 18. Bxf8 {[%clk 0:00:46]}  Qxf2 {[%clk 0:00:28]} 19. Qxf7 {[%clk 0:00:17]}  Bg4 {[%clk 0:00:20]} 20. Qc4+ {[%clk 0:00:17]}  Kb8 {[%clk 0:00:15]} 21. Qxg4 {[%clk 0:00:17]}  Rxf8 {[%clk 0:00:16]} 22. Qf3 {[%clk 0:00:17]}  Qd4 {[%clk 0:00:13]} 23. Ne2 {[%clk 0:00:17]}  Qd6 {[%clk 0:00:11]} 24. Qf4 {[%clk 0:00:18]}  Qxf4+ {[%clk 0:00:10]} 25. Nxf4 {[%clk 0:00:19]}  Rg8 {[%clk 0:00:10]} 26. Rh1 {[%clk 0:00:19]}  Rg4 {[%clk 0:00:09]} 27. Nd5 {[%clk 0:00:19]}  f5 {[%clk 0:00:08]} 28. Rxh7 {[%clk 0:00:18]}  Rd4 {[%clk 0:00:08]} 29. Ne3 {[%clk 0:00:18]}  Rf4 {[%clk 0:00:07]} 30. Rf7 {[%clk 0:00:18]}  Rf2 {[%clk 0:00:08]} 31. Nxf5 {[%clk 0:00:17]} 1-0


[Site "https://www.chess.com"]

[Event "Titled Tuesday Blitz June 6 Early 2023"]
[White "Lehtosaari, Mauri"]
[Black "Topalov, Aleksandar"]
[WhiteFideId "501999"]
[BlackFideId "925659"]
[WhiteElo "2476"]
[BlackElo "2151"]
[Result "1-0"]
[Round "11"]
[TimeControl "180+2"]
[Date "2023.06.06"]
[WhiteClock "0:00:42"]
[BlackClock "0:01:23"]
[Board "86"]

1. d4 {[%clk 0:03:00]}  Nf6 {[%clk 0:02:55]} 2. Nf3 {[%clk 0:03:01]}  g6 {[%clk 0:02:54]} 3. Bg5 {[%clk 0:02:59]}  Bg7 {[%clk 0:02:54]} 4. Nbd2 {[%clk 0:02:57]}  d6 {[%clk 0:02:53]} 5. e3 {[%clk 0:02:56]}  O-O {[%clk 0:02:53]} 6. Bc4 {[%clk 0:02:56]}  c5 {[%clk 0:02:52]} 7. O-O {[%clk 0:02:56]}  cxd4 {[%clk 0:02:52]} 8. exd4 {[%clk 0:02:56]}  Nc6 {[%clk 0:02:46]} 9. c3 {[%clk 0:02:44]}  Bf5 {[%clk 0:02:43]} 10. Re1 {[%clk 0:02:35]}  Re8 {[%clk 0:02:43]} 11. Qb3 {[%clk 0:02:33]}  d5 {[%clk 0:02:37]} 12. Bb5 {[%clk 0:02:27]}  Qb6 {[%clk 0:02:23]} 13. Bxf6 {[%clk 0:02:07]}  Bxf6 {[%clk 0:02:21]} 14. Qxd5 {[%clk 0:02:07]}  Be6 {[%clk 0:02:18]} 15. Qc5 {[%clk 0:02:05]}  Qxc5 {[%clk 0:02:15]} 16. dxc5 {[%clk 0:02:05]}  Red8 {[%clk 0:02:11]} 17. Nb3 {[%clk 0:01:48]}  a6 {[%clk 0:02:07]} 18. Bxc6 {[%clk 0:01:41]}  bxc6 {[%clk 0:02:07]} 19. Nbd4 {[%clk 0:01:41]}  Bd7 {[%clk 0:02:01]} 20. Ne5 {[%clk 0:01:34]}  Rac8 {[%clk 0:01:54]} 21. Nxd7 {[%clk 0:01:26]}  Rxd7 {[%clk 0:01:54]} 22. Re4 {[%clk 0:01:13]}  a5 {[%clk 0:01:48]} 23. g3 {[%clk 0:00:58]}  Rcd8 {[%clk 0:01:38]} 24. Nxc6 {[%clk 0:00:55]}  Rd1+ {[%clk 0:01:35]} 25. Re1 {[%clk 0:00:51]}  Rxa1 {[%clk 0:01:32]} 26. Rxa1 {[%clk 0:00:52]}  Rd2 {[%clk 0:01:29]} 27. Rb1 {[%clk 0:00:49]}  a4 {[%clk 0:01:27]} 28. b4 {[%clk 0:00:47]}  Bxc3 {[%clk 0:01:23]} 29. b5 {[%clk 0:00:42]} 1-0


[Site "https://www.chess.com"]

[Event "Titled Tuesday Blitz June 6 Early 2023"]
[White "Papayan, Oleg"]
[Black "Schuh, Karsten"]
[WhiteFideId "4193911"]
[BlackFideId "4637950"]
[WhiteElo "2167"]
[BlackElo "2177"]
[Result "1-0"]
[Round "11"]
[TimeControl "180+2"]
[Date "2023.06.06"]
[WhiteClock "0:00:03"]
[BlackClock "0:00:09"]
[Board "87"]

1. e4 {[%clk 0:02:57]}  c5 {[%clk 0:02:59]} 2. d4 {[%clk 0:02:56]}  cxd4 {[%clk 0:02:58]} 3. Qxd4 {[%clk 0:02:57]}  Nc6 {[%clk 0:02:58]} 4. Qd3 {[%clk 0:02:58]}  Nf6 {[%clk 0:02:57]} 5. Nc3 {[%clk 0:02:59]}  d6 {[%clk 0:02:55]} 6. Nf3 {[%clk 0:02:59]}  a6 {[%clk 0:02:52]} 7. Be2 {[%clk 0:02:57]}  e6 {[%clk 0:02:51]} 8. Bf4 {[%clk 0:02:56]}  Be7 {[%clk 0:02:43]} 9. O-O-O {[%clk 0:02:56]}  O-O {[%clk 0:02:42]} 10. Bxd6 {[%clk 0:02:56]}  Bxd6 {[%clk 0:02:41]} 11. Qxd6 {[%clk 0:02:57]}  Qb6 {[%clk 0:02:36]} 12. Rhf1 {[%clk 0:02:25]}  Rd8 {[%clk 0:02:19]} 13. Qa3 {[%clk 0:02:00]}  Bd7 {[%clk 0:02:15]} 14. Qb3 {[%clk 0:01:55]}  Qc7 {[%clk 0:02:13]} 15. Kb1 {[%clk 0:01:43]}  b5 {[%clk 0:02:12]} 16. Bd3 {[%clk 0:01:13]}  Rab8 {[%clk 0:01:54]} 17. Ne2 {[%clk 0:01:11]}  a5 {[%clk 0:01:43]} 18. Ned4 {[%clk 0:00:59]}  Nxd4 {[%clk 0:01:33]} 19. Nxd4 {[%clk 0:01:00]}  b4 {[%clk 0:01:14]} 20. Qc4 {[%clk 0:00:48]}  Qxh2 {[%clk 0:01:11]} 21. g3 {[%clk 0:00:48]}  Qg2 {[%clk 0:00:55]} 22. Nc6 {[%clk 0:00:47]}  Bxc6 {[%clk 0:00:51]} 23. Qxc6 {[%clk 0:00:48]}  Rdc8 {[%clk 0:00:47]} 24. Qa6 {[%clk 0:00:47]}  Nxe4 {[%clk 0:00:40]} 25. Qxa5 {[%clk 0:00:37]}  Nc5 {[%clk 0:00:25]} 26. Qa7 {[%clk 0:00:23]}  Qc6 {[%clk 0:00:23]} 27. Qe7 {[%clk 0:00:10]}  Nxd3 {[%clk 0:00:20]} 28. cxd3 {[%clk 0:00:11]}  b3 {[%clk 0:00:16]} 29. a3 {[%clk 0:00:07]}  Qa6 {[%clk 0:00:14]} 30. Qd6 {[%clk 0:00:02]}  Rd8 {[%clk 0:00:13]} 31. Qc7 {[%clk 0:00:03]}  Rbc8 {[%clk 0:00:13]} 32. Qf4 {[%clk 0:00:03]}  Rxd3 {[%clk 0:00:12]} 33. Qe4 {[%clk 0:00:02]}  Rcd8 {[%clk 0:00:09]} 34. Rxd3 {[%clk 0:00:01]}  Qxd3+ {[%clk 0:00:09]} 35. Qxd3 {[%clk 0:00:02]}  Rd4 {[%clk 0:00:09]} 36. Rc1 {[%clk 0:00:03]}  Rxd3 {[%clk 0:00:09]} 37. Rc8+ {[%clk 0:00:03]} 1-0


[Site "https://www.chess.com"]

[Event "Titled Tuesday Blitz June 6 Early 2023"]
[White "Estrada Nieto, Julian"]
[Black "Llanos, Guillermo"]
[WhiteFideId "5101018"]
[BlackFideId "100358"]
[WhiteElo "2161"]
[BlackElo "2210"]
[Result "0-1"]
[Round "11"]
[TimeControl "180+2"]
[Date "2023.06.06"]
[WhiteClock "0:00:14"]
[BlackClock "0:00:17"]
[Board "88"]

1. e4 {[%clk 0:03:00]}  Nf6 {[%clk 0:02:54]} 2. e5 {[%clk 0:03:00]}  Nd5 {[%clk 0:02:53]} 3. d4 {[%clk 0:03:01]}  d6 {[%clk 0:02:50]} 4. Nf3 {[%clk 0:03:01]}  Bg4 {[%clk 0:02:49]} 5. Be2 {[%clk 0:03:00]}  e6 {[%clk 0:02:48]} 6. O-O {[%clk 0:03:00]}  Be7 {[%clk 0:02:48]} 7. h3 {[%clk 0:02:59]}  Bh5 {[%clk 0:02:47]} 8. c4 {[%clk 0:02:58]}  Nb6 {[%clk 0:02:47]} 9. exd6 {[%clk 0:02:56]}  cxd6 {[%clk 0:02:47]} 10. Nc3 {[%clk 0:02:56]}  O-O {[%clk 0:02:46]} 11. b3 {[%clk 0:02:48]}  d5 {[%clk 0:02:42]} 12. c5 {[%clk 0:02:46]}  N6d7 {[%clk 0:02:42]} 13. Bf4 {[%clk 0:02:45]}  Nc6 {[%clk 0:02:42]} 14. Rb1 {[%clk 0:02:41]}  a6 {[%clk 0:02:40]} 15. b4 {[%clk 0:02:41]}  Bf6 {[%clk 0:02:34]} 16. Be3 {[%clk 0:02:30]}  Bg6 {[%clk 0:02:22]} 17. Bd3 {[%clk 0:02:29]}  b5 {[%clk 0:02:16]} 18. Bxg6 {[%clk 0:02:24]}  hxg6 {[%clk 0:02:15]} 19. a4 {[%clk 0:02:24]}  Rb8 {[%clk 0:01:50]} 20. axb5 {[%clk 0:02:24]}  axb5 {[%clk 0:01:50]} 21. Qd3 {[%clk 0:02:24]}  Qc8 {[%clk 0:01:39]} 22. Rfd1 {[%clk 0:02:10]}  Qb7 {[%clk 0:01:36]} 23. Bf4 {[%clk 0:02:03]}  Nxd4 {[%clk 0:00:59]} 24. Nxd4 {[%clk 0:01:54]}  e5 {[%clk 0:00:58]} 25. Be3 {[%clk 0:01:52]}  exd4 {[%clk 0:00:58]} 26. Bxd4 {[%clk 0:01:52]}  Bxd4 {[%clk 0:00:50]} 27. Qxd4 {[%clk 0:01:52]}  Nf6 {[%clk 0:00:50]} 28. Nxd5 {[%clk 0:01:50]}  Nxd5 {[%clk 0:00:45]} 29. Qxd5 {[%clk 0:01:50]}  Qa6 {[%clk 0:00:41]} 30. Ra1 {[%clk 0:01:38]}  Qf6 {[%clk 0:00:39]} 31. Qd6 {[%clk 0:01:26]}  Qb2 {[%clk 0:00:36]} 32. Qd4 {[%clk 0:01:24]}  Qb3 {[%clk 0:00:33]} 33. Rd3 {[%clk 0:01:13]}  Qc2 {[%clk 0:00:32]} 34. Qc3 {[%clk 0:01:09]}  Qe2 {[%clk 0:00:31]} 35. Re1 {[%clk 0:01:07]}  Qh5 {[%clk 0:00:30]} 36. Re5 {[%clk 0:01:02]}  Qh4 {[%clk 0:00:28]} 37. Rd4 {[%clk 0:00:59]}  Qf6 {[%clk 0:00:27]} 38. Rd6 {[%clk 0:00:58]}  Qf4 {[%clk 0:00:26]} 39. Rd4 {[%clk 0:00:55]}  Qxe5 {[%clk 0:00:25]} 40. c6 {[%clk 0:00:51]}  Rbc8 {[%clk 0:00:21]} 41. g3 {[%clk 0:00:44]}  Rxc6 {[%clk 0:00:19]} 42. Qxc6 {[%clk 0:00:42]}  Qxd4 {[%clk 0:00:19]} 43. Qxb5 {[%clk 0:00:43]}  Rd8 {[%clk 0:00:19]} 44. Qa5 {[%clk 0:00:38]}  Qd1+ {[%clk 0:00:18]} 45. Kh2 {[%clk 0:00:34]}  Qd4 {[%clk 0:00:18]} 46. Kg1 {[%clk 0:00:32]}  Rb8 {[%clk 0:00:18]} 47. b5 {[%clk 0:00:31]}  Qb6 {[%clk 0:00:18]} 48. Qd2 {[%clk 0:00:30]}  Qxb5 {[%clk 0:00:18]} 49. Kh2 {[%clk 0:00:30]}  Qb6 {[%clk 0:00:18]} 50. h4 {[%clk 0:00:30]}  Qb5 {[%clk 0:00:18]} 51. Qe3 {[%clk 0:00:29]}  Re8 {[%clk 0:00:18]} 52. Qf4 {[%clk 0:00:28]}  Qe5 {[%clk 0:00:18]} 53. Qf3 {[%clk 0:00:28]}  Qe4 {[%clk 0:00:18]} 54. Qc3 {[%clk 0:00:27]}  Qe5 {[%clk 0:00:18]} 55. Qc4 {[%clk 0:00:25]}  Qe6 {[%clk 0:00:18]} 56. Qc5 {[%clk 0:00:24]}  Rc8 {[%clk 0:00:19]} 57. Qd4 {[%clk 0:00:24]}  Re8 {[%clk 0:00:18]} 58. Qc5 {[%clk 0:00:22]}  Qe4 {[%clk 0:00:18]} 59. Qb6 {[%clk 0:00:20]}  Ra8 {[%clk 0:00:18]} 60. Qc7 {[%clk 0:00:18]}  Ra1 {[%clk 0:00:17]} 61. Qd8+ {[%clk 0:00:15]}  Kh7 {[%clk 0:00:17]} 62. f3 {[%clk 0:00:14]}  Qxf3 {[%clk 0:00:17]} 0-1


[Site "https://www.chess.com"]

[Event "Titled Tuesday Blitz June 6 Early 2023"]
[White "MunichMouse"]
[Black "Khromkin, Andrey"]
[BlackFideId "4154126"]
[WhiteElo "2300"]
[BlackElo "2445"]
[Result "0-1"]
[Round "11"]
[TimeControl "180+2"]
[Date "2023.06.06"]
[WhiteClock "0:00:14"]
[BlackClock "0:00:19"]
[Board "89"]

1. d4 {[%clk 0:03:00]}  d5 {[%clk 0:02:59]} 2. c4 {[%clk 0:03:01]}  dxc4 {[%clk 0:02:59]} 3. e3 {[%clk 0:03:00]}  e5 {[%clk 0:02:59]} 4. Bxc4 {[%clk 0:02:59]}  exd4 {[%clk 0:02:59]} 5. Nf3 {[%clk 0:02:58]}  Bb4+ {[%clk 0:02:59]} 6. Bd2 {[%clk 0:02:56]}  Bxd2+ {[%clk 0:02:58]} 7. Qxd2 {[%clk 0:02:56]}  Nf6 {[%clk 0:02:50]} 8. Qxd4 {[%clk 0:02:50]}  O-O {[%clk 0:02:48]} 9. Nc3 {[%clk 0:02:50]}  Nc6 {[%clk 0:02:48]} 10. Qh4 {[%clk 0:02:46]}  Bg4 {[%clk 0:02:41]} 11. Rd1 {[%clk 0:02:45]}  Qe7 {[%clk 0:02:37]} 12. O-O {[%clk 0:02:30]}  Bxf3 {[%clk 0:02:30]} 13. gxf3 {[%clk 0:02:31]}  Ne5 {[%clk 0:02:30]} 14. Be2 {[%clk 0:02:25]}  Rad8 {[%clk 0:02:27]} 15. f4 {[%clk 0:02:24]}  Ng6 {[%clk 0:02:27]} 16. Qg5 {[%clk 0:02:09]}  h6 {[%clk 0:02:23]} 17. Qf5 {[%clk 0:02:06]}  Nh4 {[%clk 0:02:10]} 18. Qh3 {[%clk 0:02:06]}  Ng6 {[%clk 0:01:35]} 19. Bc4 {[%clk 0:02:06]}  c6 {[%clk 0:01:29]} 20. Kh1 {[%clk 0:02:04]}  Ne4 {[%clk 0:01:24]} 21. Bd3 {[%clk 0:01:16]}  Nxc3 {[%clk 0:01:06]} 22. bxc3 {[%clk 0:01:17]}  Nh4 {[%clk 0:01:00]} 23. Bb1 {[%clk 0:00:59]}  b5 {[%clk 0:00:46]} 24. Qg3 {[%clk 0:00:46]}  c5 {[%clk 0:00:39]} 25. h3 {[%clk 0:00:46]}  Qb7+ {[%clk 0:00:36]} 26. e4 {[%clk 0:00:34]}  Nf5 {[%clk 0:00:27]} 27. Qg2 {[%clk 0:00:31]}  Nd6 {[%clk 0:00:21]} 28. e5 {[%clk 0:00:29]}  Qxg2+ {[%clk 0:00:20]} 29. Kxg2 {[%clk 0:00:28]}  Nc4 {[%clk 0:00:20]} 30. Bd3 {[%clk 0:00:23]}  Nb2 {[%clk 0:00:19]} 31. Be2 {[%clk 0:00:20]}  Nxd1 {[%clk 0:00:19]} 32. Bxd1 {[%clk 0:00:20]}  Rd2 {[%clk 0:00:19]} 33. a4 {[%clk 0:00:19]}  b4 {[%clk 0:00:18]} 34. cxb4 {[%clk 0:00:19]}  cxb4 {[%clk 0:00:19]} 35. Bf3 {[%clk 0:00:18]}  b3 {[%clk 0:00:17]} 36. Rb1 {[%clk 0:00:19]}  b2 {[%clk 0:00:17]} 37. a5 {[%clk 0:00:18]}  Rc8 {[%clk 0:00:17]} 38. Be4 {[%clk 0:00:14]}  Rc1 {[%clk 0:00:18]} 39. Kf3 {[%clk 0:00:14]}  Rxb1 {[%clk 0:00:18]} 40. Bxb1 {[%clk 0:00:14]}  Rd1 {[%clk 0:00:19]} 0-1


[Site "https://www.chess.com"]